bitfinex/quotes_ETHUSD_20241116
["timestamp","ask_amount","ask_price","bid_price","bid_amount"]
[1731765381972,3.15984,3164.8,3164.1,3.42914879]
[1731765382174,3.16006,3164.5,3164.0,0.49445928]
[1731765382805,3.15968,3164.9,3164.2,3.16028]
[1731765383172,3.15976,3164.8,3164.0,3.65500928]
[1731765383705,3.15976,3164.8,3164.1,3.16044]
[1731765383907,3.15976,3164.8,3164.1,3.84199393]
[1731765384162,3.68013145,3165.0,3164.1,0.68155393]
[1731765384303,38.05505,3191.5,3164.2,0.06320635]
[1731765384304,3.68013145,3165.8,3164.2,0.06320635]
[1731765384508,3.0,3165.7,3164.9,3.15964]
[1731765384934,3.0,3165.7,3164.9,3.15963]
[1731765384935,6.15889,3165.7,3164.9,3.15963]
[1731765385449,6.83891145,3165.8,3164.7,3.15983]
[1731765385450,6.83893145,3165.8,3164.7,3.15976]
[1731765385655,3.15904,3165.6,3164.7,3.15976]
[1731765385805,3.15904,3165.6,3164.8,0.315976]
[1731765386241,6.83893145,3165.8,3165.0,3.15955]
[1731765386747,3.15887,3165.7,3165.0,3.15955]
[1731765387233,3.68013145,3165.8,3165.1,3.15943]
[1731765387549,6.83890145,3165.8,3165.1,3.15943]
[1731765388353,3.15908,3165.5,3164.9,3.15964]
[1731765388512,3.15908,3165.5,3164.8,0.315976]
[1731765388944,3.15908,3165.5,3164.8,3.475716]
[1731765389245,3.15908,3165.5,3163.8,0.01]
[1731765389246,3.68013145,3165.4,3164.0,0.49445928]
[1731765389455,3.68013145,3165.4,3165.0,3.15955]
[1731765389635,3.15903,3165.6,3165.0,3.15955]
[1731765390110,6.83890145,3165.8,3165.0,3.15955]
[1731765390436,3.15887,3165.7,3165.0,3.15955]
[1731765390861,3.68013145,3166.6,3165.6,3.15894]
[1731765391343,3.15833,3166.3,3165.6,3.15893]
[1731765391854,3.15806,3166.5,3165.8,3.15873]
[1731765392058,3.15806,3166.5,3165.8,3.15866]
[1731765392259,3.68013145,3167.0,3165.8,0.315866]
[1731765392562,3.68013145,3167.0,3165.3,3.0]
[1731765392563,6.83776145,3167.0,3166.3,3.15824]
[1731765392713,6.83776145,3167.0,3166.4,3.15815]
[1731765392913,3.68013145,3167.4,3166.2,0.06316465]
[1731765393149,3.15702,3167.6,3166.8,3.15768]
[1731765393355,0.01,3168.0,3165.9,3.06316085]
[1731765393356,3.15753,3167.1,3166.4,3.15814]
[1731765393537,3.15753,3167.1,3166.4,3.473954]
[1731765394124,3.15766,3166.9,3166.1,3.0]
[1731765394461,3.15766,3166.9,3166.0,3.15854]
[1731765394654,3.1576,3167.0,3166.2,3.15832]
[1731765395125,3.15753,3167.1,3166.2,3.15832]
[1731765395359,3.0,3167.3,3166.6,3.15795]
[1731765395961,3.15697,3167.6,3166.8,3.15773]
[1731765396498,3.15697,3167.6,3166.9,3.15765]
[1731765396648,3.15697,3167.6,3166.6,3.15786]
[1731765396849,3.15697,3167.6,3165.4,3.15912]
[1731765396850,3.15741,3167.2,3166.5,3.15797]
[1731765397088,3.15718,3167.4,3166.6,3.15795]
[1731765397845,3.15697,3167.6,3166.6,3.15787]
[1731765398045,3.15697,3167.6,3166.7,3.15778]
[1731765398249,3.15697,3167.6,3166.8,3.15767]
[1731765398480,3.15697,3167.6,3166.9,3.15763]
[1731765398693,6.83691145,3167.8,3167.0,3.15753]
[1731765398878,3.15678,3167.8,3167.0,3.15753]
[1731765399196,3.15655,3168.1,3167.0,3.473283]
[1731765399365,3.15668,3167.9,3167.2,3.15735]
[1731765399564,3.15579,3168.8,3168.1,3.15645]
[1731765399760,3.69013145,3169.4,3168.3,3.15622]
[1731765399761,3.15549,3169.1,3168.3,3.15622]
[1731765399964,3.1553,3169.3,3168.5,3.15606]
[1731765400301,6.83535145,3169.4,3168.3,3.15624]
[1731765400594,3.15522,3169.4,3168.6,3.15593]
[1731765400748,3.15497,3169.6,3168.6,3.15593]
[1731765400950,3.68013145,3169.8,3168.5,3.15603]
[1731765401171,3.15515,3169.5,3168.5,3.15603]
[1731765401374,3.15487,3169.7,3168.8,3.15572]
[1731765401952,3.1551,3169.5,3168.5,3.15598]
[1731765402152,3.1551,3169.5,3168.4,3.0]
[1731765402153,3.1549,3169.7,3168.8,3.15575]
[1731765402392,3.15477,3169.8,3169.1,3.15543]
[1731765402593,3.15427,3170.3,3168.8,0.06310952]
[1731765402982,3.16407,3170.5,3169.1,3.15545]
[1731765403248,3.16407,3170.5,3168.7,3.0]
[1731765403249,3.15479,3169.8,3168.7,6.15584]
[1731765403454,3.15479,3169.8,3168.9,3.15556]
[1731765403805,3.15457,3170.0,3169.0,3.15548]
[1731765404300,3.1547,3169.9,3169.0,3.15548]
[1731765404733,3.15447,3170.1,3169.1,3.15544]
[1731765404915,3.0,3170.2,3169.1,3.15544]
[1731765405218,3.0,3170.5,3169.1,3.15544]
[1731765405219,3.15467,3170.0,3169.1,3.15544]
[1731765405439,3.15471,3169.9,3169.1,3.15544]
[1731765405950,3.15447,3170.1,3169.2,3.15535]
[1731765406105,3.15464,3170.0,3169.0,3.15556]
[1731765406304,3.15475,3169.9,3169.1,3.15544]
[1731765406526,3.15464,3170.0,3169.2,3.15536]
[1731765406742,3.15464,3170.0,3169.0,3.15556]
[1731765406956,3.15464,3170.0,3169.3,3.15526]
[1731765407264,3.15436,3170.3,3169.4,3.15516]
[1731765407265,3.1544,3170.2,3169.4,3.15516]
[1731765407419,3.15448,3170.1,3169.4,3.15516]
[1731765407921,3.68013145,3170.6,3169.3,3.0]
[1731765408125,3.15473,3169.9,3169.1,3.0]
[1731765408317,3.1549,3169.7,3168.6,0.3781688]
[1731765408540,3.15501,3169.6,3168.9,3.0]
[1731765408944,3.15417,3170.4,3168.9,0.0631055]
[1731765409626,3.1544,3170.2,3169.3,3.15517]
[1731765410162,3.1544,3170.2,3169.5,3.15503]
[1731765410423,3.15447,3170.1,3169.4,3.15514]
[1731765412147,3.15417,3170.4,3169.5,3.15506]
[1731765412148,3.15435,3170.3,3169.5,3.15506]
[1731765412532,3.15412,3170.5,3169.7,3.15484]
[1731765412733,3.15399,3170.6,3169.8,3.15469]
[1731765412967,3.15253,3172.1,3169.7,0.06309185]
[1731765412968,6.83338145,3171.4,3169.7,0.06309185]
[1731765413174,3.15428,3170.3,3169.6,3.0]
[1731765413680,3.15439,3170.2,3169.6,3.0]
[1731765414070,3.15407,3170.5,3169.2,3.0]
[1731765414287,3.15459,3170.0,3169.1,3.0]
[1731765414466,3.15459,3170.0,3169.3,3.15526]
[1731765414956,3.15409,3170.5,3169.5,3.15505]
[1731765415151,3.68013145,3171.0,3169.4,3.21820282]
[1731765415353,3.68013145,3171.0,3169.0,3.0]
[1731765415354,3.1547,3169.9,3169.1,3.1554]
[1731765415555,3.1547,3169.9,3169.2,3.15536]
[1731765415798,3.15448,3170.1,3169.3,3.15526]
[1731765416594,3.1543,3170.3,3169.6,3.15497]
[1731765416798,3.0,3170.9,3169.7,3.15484]
[1731765416998,3.15418,3170.4,3169.7,3.15484]
[1731765417560,3.15432,3170.3,3169.5,3.15506]
[1731765417940,3.15428,3170.3,3169.6,3.15489]
[1731765418670,3.15428,3170.3,3169.7,3.15485]
[1731765419555,3.0,3170.9,3169.5,3.15506]
[1731765419788,3.15457,3170.0,3169.4,3.0]
[1731765420102,3.15457,3170.0,3169.4,3.0630971]
[1731765420303,3.15468,3169.9,3169.4,3.0]
[1731765420503,3.15445,3170.2,3169.4,3.0]
[1731765420729,3.15452,3170.1,3169.4,3.0]
[1731765421010,3.15452,3170.1,3169.5,3.0]
[1731765421185,3.15461,3170.0,3169.5,3.0]
[1731765421572,3.15452,3170.1,3169.3,3.0]
[1731765421996,3.68013145,3170.6,3169.3,3.0]
[1731765422272,3.68013145,3170.6,3168.5,3.16601]
[1731765422273,3.15478,3169.8,3169.2,6.15535]
[1731765422812,3.15455,3170.1,3169.4,3.15516]
[1731765423172,3.15455,3170.1,3169.5,3.15504]
[1731765423370,3.68013145,3170.6,3169.4,3.15516]
[1731765423690,3.68013145,3170.6,3169.3,0.06309766]
[1731765423873,3.15469,3169.9,3169.2,6.1553]
[1731765424209,3.15469,3169.9,3169.2,6.77083]
[1731765424569,3.1547,3169.9,3169.2,6.77083]
[1731765424768,3.15494,3169.7,3169.1,3.0]
[1731765425193,3.1551,3169.5,3168.9,3.0]
[1731765425377,3.15494,3169.7,3169.0,3.15556]
[1731765425613,3.1547,3169.9,3169.1,3.0]
[1731765425954,3.15491,3169.7,3169.1,3.0]
[1731765426467,3.15491,3169.7,3169.1,6.15545]
[1731765427251,3.15467,3169.9,3169.2,3.15535]
[1731765427252,3.15482,3169.8,3169.2,3.15535]
[1731765427406,3.15482,3169.8,3169.1,0.615545]
[1731765427606,3.15467,3169.9,3169.2,3.0]
[1731765427807,3.15467,3169.9,3169.2,6.15534]
[1731765428042,3.15467,3169.9,3169.2,3.0]
[1731765428249,3.1548,3169.8,3169.2,3.0]
[1731765428453,3.02723322,3170.1,3168.5,0.55]
[1731765428756,3.15554,3169.1,3168.3,3.15624]
[1731765429049,3.15574,3168.9,3168.0,0.62373839]
[1731765429279,3.15574,3168.9,3168.1,0.06311794]
[1731765429416,3.15574,3168.9,3168.3,3.15626]
[1731765429756,3.1555,3169.1,3168.5,3.15605]
[1731765429928,3.1555,3169.1,3168.6,0.06311295]
[1731765430325,3.1555,3169.1,3168.5,3.15605]
[1731765430326,3.15554,3169.1,3168.5,3.15605]
[1731765430923,3.15529,3169.3,3168.6,3.21907298]
[1731765431341,3.0,3170.1,3168.8,3.15573]
[1731765431546,3.15486,3169.8,3169.0,3.15549]
[1731765431817,3.15486,3169.8,3168.9,0.0631016]
[1731765431818,3.15486,3169.8,3169.1,3.15546]
[1731765432163,3.15486,3169.8,3168.9,0.0631016]
[1731765432164,3.15516,3169.5,3168.7,6.15586]
[1731765432310,3.0,3170.2,3168.7,6.15586]
[1731765432311,3.15501,3169.6,3168.9,3.15563]
[1731765432511,3.15516,3169.5,3168.9,0.06310562]
[1731765432752,3.15516,3169.5,3168.8,3.771346]
[1731765432960,3.15516,3169.5,3168.9,0.6771346]
[1731765433139,3.0,3170.2,3168.9,0.6771346]
[1731765433450,3.0,3170.2,3169.5,3.15505]
[1731765433451,3.15446,3170.2,3169.5,3.15505]
[1731765433661,3.67002395,3170.8,3169.7,3.15485]
[1731765433864,3.1543,3170.3,3169.7,3.15485]
[1731765434353,3.15406,3170.6,3169.7,3.15485]
[1731765434554,3.15419,3170.4,3169.8,0.315485]
[1731765434729,3.15419,3170.4,3169.8,3.470225]
[1731765434918,3.15419,3170.4,3169.8,3.470255]
[1731765435341,3.15406,3170.6,3169.8,3.470255]
[1731765435662,3.15406,3170.6,3169.8,0.315485]
[1731765435875,3.15379,3170.8,3170.1,3.15442]
[1731765436157,6.82355395,3171.1,3170.2,0.315442]
[1731765436158,3.15353,3171.1,3170.2,0.315442]
[1731765436459,3.15353,3171.1,3170.2,0.37852241]
[1731765436644,3.15353,3171.1,3170.4,3.15413]
[1731765436845,3.15364,3171.0,3170.3,3.15417]
[1731765437054,3.15364,3171.0,3170.3,3.21724722]
[1731765437557,3.67002395,3171.9,3170.4,3.70417]
[1731765437558,3.15339,3171.2,3170.4,3.70417]
[1731765437732,3.15369,3170.9,3170.3,3.55]
[1731765437915,3.1541,3170.5,3169.8,6.15475]
[1731765438123,3.15396,3170.7,3169.9,3.90237998]
[1731765438319,3.15396,3170.7,3170.0,3.0]
[1731765438518,3.1537,3170.9,3169.9,3.90237998]
[1731765438519,3.15345,3171.2,3169.9,3.74775998]
[1731765438757,3.0,3171.4,3170.0,0.55]
[1731765438968,3.0,3171.4,3169.9,0.74775998]
[1731765438969,3.1541,3170.5,3169.9,3.55]
[1731765439151,3.15388,3170.7,3170.0,0.670476]
[1731765439322,3.15344,3171.2,3170.1,0.55]
[1731765439524,3.15358,3171.0,3170.3,3.1542]
[1731765440169,3.15344,3171.2,3170.4,3.15416]
[1731765440334,3.1532,3171.4,3170.4,3.524576]
[1731765440539,3.1532,3171.4,3170.6,3.15396]
[1731765440540,3.1533,3171.3,3170.6,3.15396]
[1731765440743,3.1533,3171.3,3170.5,0.06307192]
[1731765440744,3.15344,3171.2,3170.5,3.0]
[1731765440957,3.15344,3171.2,3170.5,6.15405]
[1731765441535,3.15344,3171.2,3170.5,0.55]
[1731765441975,3.15344,3171.2,3170.6,0.3920416]
[1731765442159,3.15349,3171.1,3170.6,0.3920416]
[1731765442689,3.15349,3171.1,3170.7,0.55]
[1731765442831,3.15328,3171.3,3170.7,0.55]
[1731765443277,3.15309,3171.5,3170.8,0.06306801]
[1731765443487,3.15309,3171.5,3171.0,0.55]
[1731765443693,3.0,3172.2,3170.7,0.55]
[1731765443694,3.15371,3170.9,3170.7,0.55]
[1731765443842,3.15371,3170.9,3170.4,3.370416]
[1731765443843,3.15359,3171.0,3170.5,0.55]
[1731765444033,3.15373,3170.9,3170.5,0.55]
[1731765444239,3.15373,3170.9,3170.4,0.370416]
[1731765444240,3.1532,3171.4,3170.1,4.32284978]
[1731765444542,3.15414,3170.5,3169.9,1.93841388]
[1731765444759,3.15388,3170.7,3170.1,3.0]
[1731765444959,3.15388,3170.7,3170.2,0.06307779]
[1731765445470,3.15388,3170.7,3170.3,0.55]
[1731765446236,3.15388,3170.7,3170.2,0.06307779]
[1731765446237,3.15427,3170.4,3169.9,0.55]
[1731765446471,3.15427,3170.4,3169.6,1.32284978]
[1731765446674,3.15457,3170.1,3169.4,1.32284978]
[1731765446993,3.15428,3170.3,3169.5,5.94025122]
[1731765447272,3.15449,3170.1,3169.5,0.06308996]
[1731765447475,3.15449,3170.1,3169.5,0.45411797]
[1731765447973,3.15449,3170.1,3169.6,0.55]
[1731765448183,3.15449,3170.1,3169.7,0.06309]
[1731765448473,3.15449,3170.1,3169.6,0.55]
[1731765448879,3.15449,3170.1,3169.7,0.06309001]
[1731765449184,3.15449,3170.1,3169.7,0.7222248]
[1731765449399,3.15449,3170.1,3169.7,0.06309001]
[1731765449971,3.15427,3170.3,3169.7,0.06309001]
[1731765450138,3.15427,3170.3,3169.8,3.55]
[1731765450338,3.15427,3170.3,3169.9,0.06308685]
[1731765450536,3.15409,3170.5,3169.9,0.06308685]
[1731765450760,3.15409,3170.5,3170.0,0.36130868]
[1731765450938,3.15388,3170.7,3170.0,0.36130868]
[1731765450939,3.15419,3170.4,3170.0,0.36130868]
[1731765451634,3.15419,3170.4,3169.8,3.0]
[1731765451973,6.17931769,3171.1,3169.6,0.55]
[1731765451974,3.15454,3170.1,3169.6,0.55]
[1731765452180,3.15454,3170.1,3169.6,3.55]
[1731765453034,3.15454,3170.1,3169.6,0.55]
[1731765453237,3.15454,3170.1,3169.6,1.2659198]
[1731765453490,3.15474,3169.9,3169.3,0.55]
[1731765453842,3.15454,3170.1,3169.5,3.15504]
[1731765454045,3.15454,3170.1,3169.6,0.55]
[1731765454381,3.15355,3171.1,3169.8,0.55]
[1731765454382,3.15408,3170.5,3169.8,0.55]
[1731765454581,3.15345,3171.2,3170.1,0.55]
[1731765454746,3.15404,3170.6,3170.0,0.55]
[1731765455076,3.15404,3170.6,3170.1,0.4243902]
[1731765455438,3.15418,3170.4,3170.1,0.4243902]
[1731765455790,3.15444,3170.2,3169.6,3.0]
[1731765455954,3.1542,3170.4,3169.3,3.0]
[1731765455955,3.1542,3170.4,3169.8,3.15474]
[1731765456282,3.1542,3170.4,3170.0,0.55]
[1731765456777,3.154,3170.6,3170.0,0.55]
[1731765456979,3.15415,3170.5,3170.1,0.36130848]
[1731765457184,3.15427,3170.3,3169.8,0.55]
[1731765457681,3.15427,3170.3,3169.8,3.55]
[1731765458273,3.15434,3170.3,3169.7,0.55]
[1731765458485,3.15434,3170.3,3169.9,0.55]
[1731765458843,3.15332,3171.3,3170.0,0.06308413]
[1731765459189,3.15332,3171.3,3170.6,3.7039]
[1731765459408,3.1531,3171.5,3170.7,3.21684871]
[1731765459621,3.15321,3171.4,3170.8,0.55]
[1731765459906,3.15289,3171.7,3170.9,3.15365]
[1731765460104,3.02576769,3171.9,3171.0,0.55]
[1731765460315,3.02576769,3171.9,3170.8,3.0]
[1731765460316,3.15298,3171.6,3170.9,3.70366]
[1731765460628,3.15298,3171.6,3171.0,3.15356]
[1731765461015,3.15298,3171.6,3170.9,0.55]
[1731765461186,3.15283,3171.8,3171.1,0.55]
[1731765461386,3.15283,3171.8,3171.2,0.06306061]
[1731765461576,3.15283,3171.8,3170.5,3.0]
[1731765461577,3.15231,3172.3,3171.6,0.55]
[1731765461778,6.17764769,3172.8,3171.7,0.55]
[1731765461779,3.1522,3172.4,3171.7,0.55]
[1731765461978,3.1522,3172.4,3171.7,0.61305009]
[1731765462479,3.1522,3172.4,3171.6,3.70294]
[1731765462689,3.15232,3172.3,3171.7,0.0630495]
[1731765462875,3.15199,3172.6,3171.7,0.0630495]
[1731765463075,3.15248,3172.1,3171.5,0.55]
[1731765463278,3.64094758,3172.8,3171.5,0.55]
[1731765463581,3.15236,3172.3,3171.6,0.55]
[1731765464010,3.15238,3172.2,3171.6,0.55]
[1731765464523,3.15269,3171.9,3171.4,0.55]
[1731765464692,3.15297,3171.7,3170.9,6.15367]
[1731765464893,3.15297,3171.7,3170.8,3.0]
[1731765464894,3.15314,3171.5,3170.8,3.0]
[1731765465215,3.1527,3171.9,3170.9,0.06306029]
[1731765465428,3.1527,3171.9,3171.2,3.15335]
[1731765465577,3.1527,3171.9,3171.3,3.06305696]
[1731765465922,6.17793769,3172.5,3171.3,3.15325]
[1731765465923,3.15259,3172.0,3171.3,3.15325]
[1731765466313,3.15285,3171.8,3171.2,3.0]
[1731765466615,3.15285,3171.8,3171.1,0.55]
[1731765466819,3.15301,3171.6,3171.2,0.06306046]
[1731765467582,3.15285,3171.8,3171.2,0.06306046]
[1731765467787,3.02576769,3172.2,3171.2,0.06306046]
[1731765468021,3.1529,3171.7,3171.2,0.06306046]
[1731765468199,3.15298,3171.6,3171.2,0.06306046]
[1731765468395,3.15328,3171.3,3170.1,0.01]
[1731765468597,3.1531,3171.5,3170.2,0.09]
[1731765468796,3.1531,3171.5,3170.8,3.15369]
[1731765469331,3.1531,3171.5,3170.9,0.06306386]
[1731765469532,3.1531,3171.5,3170.8,3.15369]
[1731765469730,3.15319,3171.4,3170.9,0.55]
[1731765470724,3.15288,3171.7,3171.0,3.15357]
[1731765470891,3.15288,3171.7,3171.1,0.55]
[1731765471091,3.15268,3171.9,3171.3,0.55]
[1731765471305,3.15268,3171.9,3171.4,0.06305617]
[1731765471711,3.15248,3172.1,3171.3,3.70326]
[1731765472011,3.15219,3172.4,3171.5,0.55]
[1731765472338,6.17801769,3172.4,3171.3,3.0]
[1731765472495,3.15279,3171.8,3171.4,0.55]
[1731765472695,3.15286,3171.8,3171.3,0.55]
[1731765472897,3.1529,3171.7,3171.2,0.55]
[1731765473501,3.15259,3172.0,3171.2,0.55]
[1731765473701,3.15289,3171.7,3171.2,0.55]
[1731765474532,3.02576769,3172.1,3170.9,3.524039]
[1731765474533,3.02576769,3172.1,3171.0,3.55]
[1731765474741,3.15305,3171.6,3171.0,0.55]
[1731765474914,3.15305,3171.6,3171.2,0.55]
[1731765475117,6.30516,3172.0,3171.2,0.55]
[1731765475305,3.15306,3171.6,3171.0,0.55]
[1731765475507,3.15197,3172.7,3170.9,0.55]
[1731765475508,3.1532,3171.4,3170.9,0.55]
[1731765476547,3.15298,3171.6,3171.0,0.0630637]
[1731765477016,3.1531,3171.5,3171.0,0.0630637]
[1731765477208,3.1528,3171.8,3171.0,0.73973307]
[1731765477409,3.15308,3171.5,3171.0,0.73973307]
[1731765477609,3.15298,3171.6,3171.0,0.73973307]
[1731765477834,3.15288,3171.7,3171.0,0.0630637]
[1731765478034,3.1532,3171.4,3171.0,0.0630637]
[1731765478245,3.1532,3171.4,3170.9,0.55]
[1731765478451,3.1532,3171.4,3171.0,0.06306371]
[1731765479729,3.02576769,3171.8,3170.3,3.15424]
[1731765480046,3.15328,3171.3,3170.6,3.1539]
[1731765480344,3.15309,3171.5,3170.8,3.15374]
[1731765480556,3.15256,3172.1,3170.6,3.1539]
[1731765480557,3.15329,3171.3,3170.6,3.1539]
[1731765480713,3.15258,3172.0,3170.7,0.31539]
[1731765480913,3.15331,3171.3,3170.7,0.31539]
[1731765481246,3.15324,3171.4,3170.7,0.31539]
[1731765481247,3.15346,3171.2,3170.7,0.31539]
[1731765481445,3.15346,3171.2,3170.7,0.3784557]
[1731765481607,3.15324,3171.4,3170.7,0.3784557]
[1731765481950,3.15324,3171.4,3170.8,3.0]
[1731765482147,3.15324,3171.4,3170.9,0.61306926]
[1731765482448,3.15324,3171.4,3170.9,0.55]
[1731765482856,3.15324,3171.4,3170.7,3.0]
[1731765483014,3.15337,3171.3,3170.8,0.06306528]
[1731765483723,3.15337,3171.3,3170.8,3.55]
[1731765484053,3.15337,3171.3,3170.8,3.61306627]
[1731765484436,3.15229,3172.3,3170.2,0.315]
[1731765484437,3.02576769,3171.0,3170.2,0.315]
[1731765484638,3.02576769,3171.0,3169.6,3.15495]
[1731765484820,3.01,3171.7,3169.6,0.44879398]
[1731765484821,3.15437,3170.2,3169.6,0.44879398]
[1731765485019,3.15437,3170.2,3169.5,3.15505]
[1731765485464,3.15464,3170.0,3169.3,3.15525]
[1731765485717,3.15419,3170.4,3169.1,0.315]
[1731765485865,3.02576769,3170.7,3169.6,3.15494]
[1731765485866,3.15428,3170.3,3169.6,3.15494]
[1731765486025,3.15438,3170.2,3169.6,3.470434]
[1731765486224,3.15417,3170.4,3169.6,0.315494]
[1731765486225,3.15448,3170.1,3169.6,0.315494]
[1731765486821,3.15448,3170.1,3169.7,0.55]
[1731765487321,3.15458,3170.0,3169.7,0.55]
[1731765487571,3.15458,3170.0,3169.4,0.55]
[1731765487729,3.15458,3170.0,3169.6,0.55]
[1731765488147,3.15439,3170.2,3169.6,0.55]
[1731765488523,3.15439,3170.2,3169.7,3.06308958]
[1731765488728,3.15439,3170.2,3169.6,3.70497]
[1731765488729,3.15439,3170.2,3169.6,0.55]
[1731765488958,3.15457,3170.0,3169.6,0.55]
[1731765489362,3.15477,3169.8,3169.4,0.55]
[1731765489871,3.15477,3169.8,3169.1,3.55]
[1731765490088,3.15488,3169.7,3169.3,0.55]
[1731765490234,3.15477,3169.8,3169.1,3.0]
[1731765490735,3.15488,3169.7,3169.1,3.0]
[1731765490936,3.15488,3169.7,3169.3,3.0]
[1731765492245,3.15488,3169.7,3169.2,0.55]
[1731765493331,3.15508,3169.5,3169.2,0.55]
[1731765493537,3.15507,3169.5,3169.1,0.55]
[1731765493765,3.15488,3169.7,3169.1,3.69099947]
[1731765494038,3.15488,3169.7,3169.1,6.84640947]
[1731765494471,3.15488,3169.7,3169.1,3.69099947]
[1731765495469,3.15498,3169.6,3169.1,3.69099947]
[1731765495851,3.15498,3169.6,3169.3,0.55]
[1731765497270,3.15498,3169.6,3169.2,0.46414879]
[1731765497271,3.15515,3169.5,3168.9,3.0]
[1731765497609,3.15528,3169.3,3169.0,0.55]
[1731765497811,3.15528,3169.3,3167.9,0.44532056]
[1731765497812,3.02576769,3169.5,3168.3,0.64464044]
[1731765498018,3.15575,3168.9,3168.3,0.64464044]
[1731765498308,3.15575,3168.9,3168.4,0.38009804]
[1731765498866,3.15548,3169.1,3168.4,0.38009804]
[1731765499067,3.15564,3169.0,3168.3,3.80083044]
[1731765499304,3.15564,3169.0,3168.4,3.55]
[1731765499601,3.15548,3169.1,3168.4,3.55]
[1731765499807,3.15564,3169.0,3168.4,3.55]
[1731765500012,3.15567,3168.9,3168.4,3.55]
[1731765500177,3.15567,3168.9,3168.6,0.55]
[1731765501417,3.15567,3168.9,3168.5,0.73508304]
[1731765501418,3.15581,3168.8,3168.5,0.73508304]
[1731765501620,3.15567,3168.9,3168.3,3.55]
[1731765501779,3.15578,3168.8,3168.3,3.55]
[1731765502108,3.15549,3169.1,3168.3,0.55]
[1731765502272,3.15549,3169.1,3168.0,0.55]
[1731765502473,3.15567,3168.9,3168.4,3.55]
[1731765502698,3.15549,3169.1,3168.5,3.826675]
[1731765502893,3.15555,3169.1,3168.3,6.70622]
[1731765503096,3.15524,3169.4,3168.5,3.55]
[1731765503295,3.15503,3169.6,3168.8,3.15569]
[1731765503509,3.15503,3169.6,3169.0,0.55]
[1731765504219,3.1548,3169.8,3169.0,0.61310342]
[1731765504422,3.15508,3169.5,3169.0,0.61310342]
[1731765504617,3.15489,3169.7,3169.0,3.76858342]
[1731765504822,3.1548,3169.8,3169.0,0.61310342]
[1731765504973,3.1548,3169.8,3169.3,0.55]
[1731765505312,3.15459,3170.0,3169.3,0.55]
[1731765505472,3.15459,3170.0,3169.5,0.55]
[1731765505689,3.1544,3170.2,3169.6,3.21805308]
[1731765506412,3.15398,3170.6,3169.8,3.70467]
[1731765506613,3.15398,3170.6,3169.9,0.43355371]
[1731765506814,3.02576769,3171.3,3170.2,3.1543]
[1731765507372,3.15375,3170.9,3170.2,3.1543]
[1731765507576,3.15375,3170.9,3170.3,0.32173803]
[1731765507784,3.15346,3171.2,3170.5,3.15399]
[1731765508121,3.1531,3171.5,3170.4,0.55]
[1731765508423,3.1531,3171.5,3170.7,3.15379]
[1731765508424,3.15326,3171.4,3170.7,3.15379]
[1731765509102,3.1531,3171.5,3170.8,3.21682937]
[1731765509103,3.15316,3171.5,3170.8,3.21682937]
[1731765509316,3.15316,3171.5,3170.8,3.85390831]
[1731765509689,3.15336,3171.3,3170.8,0.70014831]
[1731765510029,3.15336,3171.3,3170.2,3.15437]
[1731765510030,3.02576769,3171.3,3170.2,3.15437]
[1731765510325,3.15365,3171.0,3170.2,3.15437]
[1731765510698,3.15372,3170.9,3170.1,3.15445]
[1731765510877,3.15372,3170.9,3170.2,0.67953354]
[1731765511072,3.15372,3170.9,3170.2,3.83389354]
[1731765511521,3.15372,3170.9,3170.3,3.0]
[1731765511717,3.15348,3171.1,3170.4,0.0630758]
[1731765512285,3.15329,3171.3,3170.5,0.55]
[1731765512482,3.02576769,3171.6,3170.5,0.55]
[1731765512483,6.17875769,3171.6,3170.5,0.55]
[1731765512703,3.15363,3171.0,3170.4,0.55]
[1731765512902,3.15375,3170.9,3170.4,0.370425]
[1731765513115,3.15377,3170.8,3170.2,3.0]
[1731765513617,3.15377,3170.8,3170.1,3.15446]
[1731765513618,3.15408,3170.5,3169.2,3.16532]
[1731765513823,3.15395,3170.7,3169.9,3.15466]
[1731765514229,3.15395,3170.7,3169.9,3.785612]
[1731765514586,3.15406,3170.6,3169.9,3.785612]
[1731765515015,3.15408,3170.5,3169.9,0.630952]
[1731765515320,3.15468,3169.9,3169.4,0.01]
[1731765515788,3.15446,3170.2,3169.5,3.15505]
[1731765515989,3.15446,3170.2,3169.5,3.21814354]
[1731765516720,3.15429,3170.3,3169.5,3.21814354]
[1731765516923,3.15438,3170.2,3169.5,3.21814354]
[1731765517124,3.15438,3170.2,3169.5,3.85548389]
[1731765517308,3.15451,3170.1,3169.5,3.85548389]
[1731765517823,3.15451,3170.1,3169.5,0.70043389]
[1731765518129,3.15438,3170.2,3169.5,0.70043389]
[1731765518339,3.15438,3170.2,3169.1,3.15544]
[1731765518340,3.15462,3170.0,3169.1,0.55]
[1731765518485,3.15507,3169.5,3168.9,0.63226253]
[1731765518685,3.15494,3169.7,3168.8,3.15569]
[1731765518923,3.15494,3169.7,3169.0,3.15555]
[1731765519096,3.15494,3169.7,3169.1,0.06310188]
[1731765519294,3.1548,3169.8,3169.1,0.06310188]
[1731765519830,3.15488,3169.7,3169.1,0.06310188]
[1731765520892,3.15468,3169.9,3169.2,3.15534]
[1731765521088,3.15482,3169.8,3169.1,0.06310188]
[1731765521327,3.02576769,3170.2,3169.2,0.55]
[1731765521328,3.15458,3170.0,3169.2,0.55]
[1731765521644,3.15437,3170.2,3169.2,0.55]